fUST/lending_fUST_20250106
["ID","MTS","AMOUNT","RATE_DAILY","PERIOD"]
[347820818,1736131849068,-481.40994913,0.00022555,2]
[347820819,1736131849078,-537.91,0.00022596,3]
[347820820,1736131849088,-500.0,0.00022596,3]
[347820821,1736131849097,-2796.19,0.00022596,3]
[347820822,1736131849107,-901.7,0.00022597,3]
[347820823,1736131849117,-611.42930202,0.00022597,3]
[347820824,1736131849127,-521.88,0.00022597,3]
[347820825,1736131849136,-500.0,0.00022597,3]
[347820826,1736131849146,-7709.78,0.00022597,3]
[347820827,1736131849155,-500.0,0.00022597,3]
[347820828,1736131849165,-548.4,0.00022597,3]
[347820829,1736131849174,-500.0,0.00022597,3]
[347820830,1736131849184,-500.0,0.00022597,3]
[347820831,1736131849193,-611.83,0.00022597,3]
[347820832,1736131849204,-500.0,0.00022597,3]
[347820833,1736131849214,-500.0,0.00022597,3]
[347820834,1736131849223,-500.0,0.00022597,3]
[347820835,1736131849234,-1109.09,0.00022598,3]
[347820836,1736131849243,-930.53,0.00022598,3]
[347820837,1736131849254,-158.63219418,0.0002262,2]
[347820838,1736131849264,-2790.39,0.0002264,3]
[347820839,1736131849274,-500.0,0.0002264,3]
[347820840,1736131849283,-2012.61,0.00022641,3]
[347820841,1736131849293,-481.40994913,0.00022659,2]
[347820842,1736131849303,-265.0,0.0002276,8]
[347820843,1736131849312,-481.40994913,0.00022762,2]
[347820844,1736131849322,-500.0,0.00022779,3]
[347820845,1736131849331,-151.0,0.00022779,7]
[347820846,1736131849341,-970.0,0.00022779,2]
[347820847,1736131849350,-970.0,0.00022779,2]
[347820848,1736131849362,-1010.777994,0.00022779,2]
[347820849,1736131849372,-10813.2705252,0.000228,3]
[347820850,1736131849381,-763.56,0.000228,2]
[347820851,1736131849391,-151.0,0.000228,7]
[347820852,1736131849401,-151.0,0.000228,5]
[347820853,1736131849411,-170.124571,0.000228,2]
[347820854,1736131849421,-481.40994913,0.00022866,2]
[347820855,1736131849431,-537.91,0.0002287,3]
[347820856,1736131849440,-500.0,0.0002287,3]
[347820857,1736131849450,-2796.19,0.0002287,3]
[347820858,1736131849460,-151.0,0.00022871,7]
[347820859,1736131849470,-901.7,0.00022871,3]
[347820860,1736131849479,-521.88,0.00022871,3]
[347820861,1736131849488,-500.0,0.00022871,3]
[347820862,1736131849498,-7709.78,0.00022871,3]
[347820863,1736131849507,-500.0,0.00022871,3]
[347820864,1736131849516,-548.4,0.00022871,3]
[347820865,1736131849525,-500.0,0.00022871,3]
[347820866,1736131849535,-500.0,0.00022871,3]
[347820867,1736131849544,-500.0,0.00022871,3]
[347820868,1736131849554,-500.0,0.00022871,3]
[347820869,1736131849563,-500.0,0.00022871,3]
[347820870,1736131849573,-1109.09,0.00022872,3]
[347820871,1736131849583,-930.53,0.00022872,3]
[347820872,1736131849592,-1500.0,0.0002288,2]
[347820873,1736131849601,-488.10161472,0.00022884,2]
[347820874,1736131849612,-488.10161468,0.00022887,2]
[347820875,1736131849621,-488.10161468,0.00022891,2]
[347820876,1736131849630,-488.10161468,0.00022894,2]
[347820877,1736131849640,-488.10161468,0.00022898,2]
[347820878,1736131849650,-150.386345,0.000229,2]
[347820879,1736131849659,-160.84,0.000229,31]
[347820880,1736131849668,-160.84,0.000229,31]
[347820881,1736131849677,-160.84,0.000229,31]
[347820882,1736131849687,-160.84,0.000229,31]
[347820883,1736131849696,-160.84,0.000229,31]
[347820884,1736131849705,-160.84,0.000229,31]
[347820885,1736131849714,-160.84,0.000229,31]
[347820886,1736131849723,-488.10161468,0.00022901,2]
[347820887,1736131849732,-488.10161468,0.00022905,2]
[347820888,1736131849841,-488.10161468,0.00022908,2]
[347820889,1736131849852,-488.10161468,0.00022912,2]
[347820890,1736131849863,-2790.39,0.00022914,3]
[347820891,1736131849871,-500.0,0.00022914,3]
[347820892,1736131849881,-488.10161468,0.00022915,2]
[347820893,1736131849891,-158.63219418,0.00022915,2]
[347820894,1736131849900,-209.730115,0.00022917,7]
[347820895,1736131849909,-1200.0,0.00022932,2]
[347820896,1736131849919,-481.40994913,0.00022969,2]
[347820897,1736131849928,-386.68676372,0.0002298,2]
[347820898,1736131849941,-3179.96744396,0.0002298,2]
[347820899,1736131849950,-238504.95290697,0.0002298,10]
[347820900,1736131849965,-3546.71953124,0.0002298,10]
[347820902,1736132041946,189.5501402,0.00019713,2]
[347820904,1736132487731,1061.6477187,0.00019931,2]
[347820905,1736132668556,192.31,0.0002,2]
[347820906,1736132715713,162.330549,0.00013973,2]
[347820907,1736132741128,-224.96476123,0.00020464,2]
[347820908,1736132741152,-1860.26,0.00020589,3]
[347820909,1736132741174,-44.57582718,0.00020589,3]
[347820911,1736132816973,1741.70331079,0.000189,2]
[347820912,1736132831101,-324.41682542,0.00020464,2]
[347820913,1736132839128,-117.0943689,0.00020464,2]
[347820914,1736132839151,-455.42417282,0.00020589,3]
[347820915,1736132839174,-1425.6,0.00020589,3]
[347820916,1736132839196,-500.0,0.00020678,3]
[347820917,1736132839220,-693.18,0.00020678,3]
[347820918,1736132839247,-362.84749999,0.00020678,3]
[347820919,1736132843121,-218.73250001,0.00020678,3]
[347820920,1736132843142,-91.60167741,0.00020679,3]
[347820921,1736132890176,528.58268712,0.000197,10]
[347820922,1736132946337,163.110871,0.00019755,2]
[347821349,1736133118309,1272.92323386,0.000189,2]
[347821350,1736133254687,191.32,0.00025,120]
[347821351,1736133419586,848.61548924,0.000189,2]
[347821352,1736133430079,224.87509182,0.0002,2]
[347821353,1736133442453,1018.0770125,0.00019855,2]
[347821354,1736133554989,283.438283,0.00019879,2]
[347821355,1736133610020,162.453028,0.00013973,2]
[347821356,1736133720828,565.74365949,0.000189,2]
[347821357,1736133946130,-218.58781305,0.0002064,2]
[347821358,1736133946255,-300.0,0.00020677,2]
[347821359,1736133946277,-7.33920041,0.00020678,3]
[347821362,1736134022454,924.80897931,0.000189,2]
[347821363,1736134030139,-2032.60812427,0.00020678,3]
[347821364,1736134052096,-213.41405885,0.00020678,3]
[347821365,1736134063714,160.4340897,0.00019654,2]
[347821367,1736134111658,1053.51651586,0.00018,2]
[347821369,1736134174436,302.8788636,0.00019556,2]
[347821370,1736134174498,154.62301223,0.00019751,2]
[347821371,1736134187935,-600.0,0.00023,14]
[347821418,1736134232295,-193.34338186,0.00020678,2]
[347821420,1736134232305,-163.22291005,0.00020678,2]
[347821423,1736134232317,-1426.76081193,0.00020678,2]
[347821425,1736134232326,-500.0,0.00020678,3]
[347821427,1736134232335,-500.0,0.00020678,3]
[347821429,1736134232346,-500.0,0.00020678,3]
[347821431,1736134232355,-740.52937179,0.00020678,3]
[347821608,1736134237899,-2978.33062821,0.00020678,3]
[347821610,1736134237909,-4357.2,0.00020879,3]
[347821612,1736134237919,-154.73891223,0.000209,2]
[347821614,1736134237930,-500.0,0.00020946,3]
[347821616,1736134237939,-500.0,0.00020946,3]
[347821618,1736134237949,-16919.55,0.00020946,2]
[347821620,1736134237958,-500.0,0.00020946,3]
[347821622,1736134237967,-500.0,0.00020947,3]
[347821624,1736134237976,-237.8908135,0.00020947,2]
[347821626,1736134237986,-3785.05,0.00020947,3]
[347821628,1736134237995,-500.0,0.00020947,3]
[347821630,1736134238006,-2057.21,0.00020947,3]
[347821632,1736134238015,-513.12329153,0.00020947,3]
[347821634,1736134238024,-518.20065797,0.00020947,3]
[347821636,1736134238034,-1095.51,0.00020947,3]
[347821638,1736134238043,-507.94,0.00020947,3]
[347821640,1736134238052,-500.0,0.00020947,3]
[347821642,1736134238061,-500.0,0.00020947,3]
[347821644,1736134238070,-500.0,0.00020947,3]
[347821646,1736134238079,-500.0,0.00020947,3]
[347821648,1736134238088,-511.87585364,0.00020947,3]
[347821650,1736134238097,-500.0,0.00020947,3]
[347821652,1736134238107,-500.0,0.00020947,3]
[347821654,1736134238116,-500.0,0.00020947,3]
[347821656,1736134238125,-500.0,0.00020947,3]
[347821658,1736134238135,-1217.57,0.00020947,3]
[347821660,1736134238144,-1341.59,0.00020947,3]
[347821662,1736134238153,-500.0,0.00020947,3]
[347821664,1736134238163,-500.0,0.00020947,3]
[347821666,1736134238172,-500.0,0.00020947,3]
[347821668,1736134238183,-500.0,0.00020947,3]
[347821670,1736134238192,-500.0,0.00020947,3]
[347821672,1736134238201,-500.0,0.00020947,3]
[347821674,1736134238210,-534.58,0.00020947,3]
[347821676,1736134238220,-676.82,0.00020947,3]
[347821678,1736134238230,-500.0,0.00020947,3]
[347821680,1736134238239,-500.0,0.00020947,3]
[347821682,1736134238248,-500.0,0.00020947,3]
[347821684,1736134238258,-500.0,0.00020947,3]
[347821686,1736134238267,-500.0,0.00020947,3]
[347821688,1736134238277,-500.0,0.00020947,3]
[347821690,1736134238287,-500.0,0.00020948,3]
[347821693,1736134238296,-500.0,0.00020948,3]
[347821694,1736134238306,-500.0,0.00020948,3]
[347821696,1736134238315,-500.0,0.00020948,3]
[347821698,1736134238324,-500.0,0.00020948,3]
[347821700,1736134238334,-500.0,0.00020948,3]
[347821703,1736134238343,-500.0,0.00020948,3]
[347821705,1736134238352,-500.0,0.00020948,3]
[347821707,1736134238362,-500.0,0.00020948,3]
[347821709,1736134238371,-500.0,0.00020948,3]
[347821711,1736134238380,-500.0,0.00020948,3]
[347821713,1736134238390,-500.0,0.00020948,3]
[347821714,1736134238399,-500.0,0.00020948,3]
[347821717,1736134238410,-500.0,0.00020948,3]
[347821718,1736134238419,-500.0,0.00020948,3]
[347821721,1736134238431,-500.0,0.00020948,3]
[347821722,1736134238440,-500.0,0.00020948,3]
[347821725,1736134238450,-500.0,0.00020948,3]
[347821727,1736134238459,-500.0,0.00020948,3]
[347821729,1736134238469,-500.0,0.00020948,3]
[347821731,1736134238478,-500.0,0.00020948,3]
[347821733,1736134238488,-517.42593752,0.00020948,3]
[347821735,1736134238497,-500.0,0.00020948,3]
[347821737,1736134238507,-500.0,0.00020948,3]
[347821739,1736134238516,-243.6431228,0.00020948,3]
[347821741,1736134238525,-500.0,0.00020948,3]
[347821743,1736134238534,-500.0,0.00020948,3]
[347821744,1736134238544,-500.0,0.00020948,3]
[347821746,1736134238553,-500.0,0.00020948,3]
[347821749,1736134238563,-500.0,0.00020948,3]
[347821751,1736134238572,-500.0,0.00020948,3]
[347821753,1736134238582,-415.01865452,0.00020948,3]
[347821755,1736134238591,-500.0,0.00020948,3]
[347821757,1736134238601,-500.0,0.00020948,3]
[347821759,1736134238611,-505.62544637,0.00020948,3]
[347821760,1736134238620,-500.0,0.00020948,3]
[347821763,1736134238631,-500.0,0.00020948,3]
[347821765,1736134238644,-512.54856255,0.00020948,3]
[347821767,1736134238654,-500.0,0.00020948,3]
[347821769,1736134238662,-517.0534238,0.00020948,3]
[347821771,1736134238671,-500.0,0.00020948,3]
[347821773,1736134238683,-500.0,0.00020948,3]
[347821775,1736134238692,-500.0,0.00020948,3]
[347821776,1736134238701,-507.37009088,0.00020948,3]
[347821778,1736134238711,-500.0,0.00020948,3]
[347821781,1736134238722,-508.9295035,0.00020948,3]
[347821783,1736134238732,-500.0,0.00020948,3]
[347821784,1736134238742,-500.0,0.00020948,3]
[347821786,1736134238752,-500.0,0.00020948,3]
[347821789,1736134238761,-500.0,0.00020948,3]
[347821790,1736134238770,-500.0,0.00020948,3]
[347821792,1736134238780,-500.0,0.00020948,3]
[347821794,1736134238789,-500.0,0.00020948,3]
[347821797,1736134238799,-500.0,0.00020948,3]
[347821798,1736134238809,-500.0,0.00020948,3]
[347821801,1736134238819,-500.0,0.00020948,3]
[347821803,1736134238828,-500.0,0.00020948,3]
[347821805,1736134238837,-500.0,0.00020948,3]
[347821807,1736134238846,-500.0,0.00020948,3]
[347821809,1736134238855,-500.0,0.00020948,3]
[347821811,1736134238864,-500.0,0.00020948,3]
[347821812,1736134238874,-500.0,0.00020948,3]
[347821815,1736134238883,-500.0,0.00020948,3]
[347821817,1736134238892,-500.0,0.00020948,3]
[347821818,1736134238902,-518.23,0.00020948,3]
[347821820,1736134238911,-500.0,0.00020948,3]
[347821823,1736134238920,-500.0,0.00020948,3]
[347821824,1736134238931,-500.0,0.00020948,3]
[347821827,1736134238940,-500.0,0.00020948,3]
[347821829,1736134238950,-514.78628884,0.00020948,3]
[347821830,1736134238959,-500.0,0.00020948,3]
[347821832,1736134238968,-506.98803069,0.00020948,3]
[347821834,1736134238977,-500.0,0.00020948,3]
[347821836,1736134238987,-500.0,0.00020948,3]
[347821838,1736134238996,-500.0,0.00020948,3]
[347821840,1736134239005,-506.01180382,0.00020948,3]
[347821842,1736134239014,-500.0,0.00020948,3]
[347821844,1736134239024,-500.0,0.00020948,3]
[347821846,1736134239033,-500.0,0.00020948,3]
[347821849,1736134239044,-500.0,0.00020948,3]
[347821851,1736134239054,-16209.91,0.00020948,3]
[347821853,1736134239063,-500.0,0.00020948,3]
[347821854,1736134239072,-500.0,0.00020948,3]
[347821855,1736134239081,-500.0,0.00020948,3]
[347821856,1736134239091,-500.0,0.00020948,3]
[347821857,1736134239101,-500.0,0.00020948,3]
[347821858,1736134239111,-500.0,0.00020948,3]
[347821859,1736134239121,-500.0,0.00020948,3]
[347821860,1736134239130,-500.0,0.00020948,3]
[347821861,1736134239139,-505.37387658,0.00020948,3]
[347821862,1736134239148,-500.0,0.00020948,3]
[347821863,1736134239157,-500.0,0.00020948,3]
[347821864,1736134239166,-500.0,0.00020949,3]
[347821865,1736134239176,-500.0,0.00020949,3]
[347821866,1736134239185,-506.36179036,0.00020949,3]
[347821867,1736134239194,-500.0,0.00020949,3]
[347821868,1736134239203,-500.0,0.00020949,3]
[347821869,1736134239213,-504.50876661,0.00020949,3]
[347821870,1736134239222,-500.0,0.00020949,3]
[347821871,1736134239231,-402.86066331,0.00020949,3]
[347821872,1736134239241,-500.0,0.00020949,3]
[347821873,1736134239250,-500.0,0.00020949,3]
[347821874,1736134239260,-500.0,0.00020949,3]
[347821875,1736134239269,-178.61,0.00020949,2]
[347821876,1736134239278,-187.95038868,0.00020949,2]
[347821877,1736134239287,-500.0,0.00020949,3]
[347821878,1736134239297,-500.0,0.00020949,3]
[347821879,1736134239306,-500.0,0.00020949,3]
[347821881,1736134239316,-508.87167774,0.00020949,3]
[347821883,1736134239325,-500.0,0.00020949,3]
[347821885,1736134239334,-510.270556,0.00020949,3]
[347821887,1736134239344,-500.0,0.00020949,3]
[347821889,1736134239354,-500.0,0.00020949,3]
[347821891,1736134239363,-500.0,0.00020949,3]
[347821893,1736134239372,-500.0,0.00020949,3]
[347821895,1736134239381,-500.0,0.00020949,3]
[347821897,1736134239391,-319.12041346,0.00020949,3]
[347821899,1736134239400,-500.0,0.00020949,3]
[347821901,1736134239409,-517.75024723,0.00020949,3]
[347821903,1736134239419,-504.2166166,0.00020949,3]
[347821905,1736134239429,-513.4305025,0.00020949,3]
[347821907,1736134239438,-500.0,0.00020949,3]
[347821909,1736134239449,-500.0,0.00020949,3]
[347821911,1736134239458,-513.9173878,0.00020949,3]
[347821913,1736134239467,-516.29739067,0.00020949,3]
[347821915,1736134239476,-500.0,0.00020949,3]
[347821917,1736134239485,-512.01075229,0.00020949,3]
[347821919,1736134239495,-500.0,0.00020949,3]
[347821921,1736134239504,-502.96531514,0.00020949,3]
[347821923,1736134239513,-503.95844444,0.00020949,3]
[347821925,1736134239522,-333.65939082,0.00020949,3]
[347821927,1736134239532,-500.0,0.00020949,3]
[347821929,1736134239541,-497.63925639,0.00020949,3]
[347821931,1736134239551,-500.0,0.00020949,3]
[347821933,1736134239560,-500.0,0.00020949,3]
[347821935,1736134239569,-507.17617961,0.00020949,3]
[347821937,1736134239579,-500.0,0.00020949,3]
[347821939,1736134239588,-500.0,0.00020949,3]
[347821941,1736134239597,-514.49525176,0.00020949,3]
[347821943,1736134239607,-500.0,0.00020949,3]
[347821945,1736134239616,-500.0,0.00020949,3]
[347821947,1736134239626,-500.0,0.00020949,3]
[347821949,1736134239641,-263.97117359,0.00020949,3]
[347821951,1736134239650,-432.2004183,0.00020949,3]
[347821953,1736134239660,-514.85873289,0.00020949,3]
[347821955,1736134239670,-510.51884615,0.00020949,3]
[347821958,1736134239681,-500.0,0.00020949,3]
[347821960,1736134239691,-1813.94,0.00020949,3]
[347821962,1736134239701,-500.0,0.0002095,3]
[347821963,1736134239711,-1285.71,0.0002095,3]
[347821966,1736134239722,-500.0,0.0002095,3]
[347821967,1736134239731,-500.0,0.0002095,3]
[347821970,1736134239740,-500.0,0.0002095,3]
[347821971,1736134239750,-500.0,0.0002095,3]
[347821974,1736134239760,-500.0,0.0002095,3]
[347821976,1736134239772,-500.0,0.0002095,3]
[347821978,1736134239781,-505.59038227,0.0002095,3]
[347821980,1736134239791,-522.37832798,0.0002095,3]
[347821982,1736134239800,-500.0,0.0002095,3]
[347821984,1736134239811,-500.0,0.0002095,3]
[347821986,1736134239820,-500.0,0.00020951,3]
[347821988,1736134239910,-281.55584846,0.00020951,2]
[347821989,1736134239920,-500.0,0.00020952,3]
[347821990,1736134239930,-500.0,0.00020952,3]
[347821991,1736134239940,-504.0538555,0.00020952,3]
[347821992,1736134239950,-500.0,0.00020952,3]
[347821993,1736134239959,-3718.86,0.00020952,3]
[347821994,1736134239969,-500.0,0.00020998,3]
[347821995,1736134239978,-500.0,0.00020998,3]
[347821996,1736134239988,-500.0,0.00020999,3]
[347821997,1736134239998,-500.0,0.00020999,3]
[347821998,1736134240007,-500.0,0.00020999,3]
[347821999,1736134240016,-508.58900788,0.00020999,3]
[347822000,1736134240025,-500.0,0.00020999,3]
[347822001,1736134240035,-506.59347866,0.00020999,3]
[347822002,1736134240045,-500.0,0.00020999,3]
[347822003,1736134240054,-500.0,0.00020999,3]
[347822004,1736134240064,-500.0,0.00020999,3]
[347822006,1736134240073,-554.83590996,0.00020999,3]
[347822008,1736134240082,-500.0,0.00020999,3]
[347822010,1736134240092,-500.0,0.00020999,3]
[347822011,1736134240101,-500.0,0.00020999,3]
[347822012,1736134240110,-517.56311119,0.00020999,3]
[347822013,1736134240119,-500.0,0.00020999,3]
[347822014,1736134240128,-500.0,0.00020999,3]
[347822015,1736134240138,-5164.75756255,0.00021,2]
[347822016,1736134240147,-5164.75756255,0.00021,2]
[347822017,1736134240156,-5164.75756255,0.00021,2]
[347822018,1736134240165,-5164.75756255,0.00021,2]
[347822019,1736134240174,-154.73891222,0.00021011,2]
[347822020,1736134240184,-154.73891222,0.00021122,2]
[347822021,1736134240193,-4357.2,0.00021153,3]
[347822022,1736134240203,-500.0,0.0002122,3]
[347822023,1736134240212,-500.0,0.0002122,3]
[347822024,1736134240221,-16919.55,0.0002122,2]
[347822025,1736134240230,-500.0,0.0002122,3]
[347822026,1736134240240,-500.0,0.00021221,3]
[347822027,1736134240249,-3785.05,0.00021221,3]
[347822028,1736134240258,-518.35466951,0.00021221,3]
[347822029,1736134240267,-2057.21,0.00021221,3]
[347822030,1736134240276,-1095.51,0.00021221,3]
[347822031,1736134240286,-507.94,0.00021221,3]
[347822032,1736134240295,-500.0,0.00021221,3]
[347822034,1736134240304,-500.0,0.00021221,3]
[347822036,1736134240313,-500.0,0.00021221,3]
[347822038,1736134240322,-500.0,0.00021221,3]
[347822040,1736134240332,-500.0,0.00021221,3]
[347822041,1736134240341,-500.0,0.00021221,3]
[347822043,1736134240350,-500.0,0.00021221,3]
[347822045,1736134240359,-1217.57,0.00021221,3]
[347822047,1736134240370,-1341.59,0.00021221,3]
[347822048,1736134240379,-500.0,0.00021221,3]
[347822050,1736134240389,-500.0,0.00021221,3]
[347822052,1736134240398,-500.0,0.00021221,3]
[347822054,1736134240407,-500.0,0.00021221,3]
[347822055,1736134240417,-500.0,0.00021221,3]
[347822056,1736134240426,-500.0,0.00021221,3]
[347822057,1736134240437,-534.58,0.00021221,3]
[347822058,1736134240447,-676.82,0.00021221,3]
[347822059,1736134240456,-500.0,0.00021221,3]
[347822060,1736134240465,-500.0,0.00021221,3]
[347822061,1736134240475,-500.0,0.00021221,3]
[347822062,1736134240483,-512.77375573,0.00021221,3]
[347822063,1736134240493,-519.55695675,0.00021221,3]
[347822064,1736134240503,-500.0,0.00021221,3]
[347822065,1736134240512,-500.0,0.00021222,3]
[347822066,1736134240522,-500.0,0.00021222,3]
[347822067,1736134240531,-258.86335442,0.00021222,3]
[347822068,1736134240540,-500.0,0.00021222,3]
[347822069,1736134240550,-513.20835153,0.00021222,3]
[347822070,1736134240559,-500.0,0.00021222,3]
[347822071,1736134240569,-500.0,0.00021222,3]
[347822072,1736134240578,-573.29224808,0.00021222,3]
[347822073,1736134240588,-500.0,0.00021222,3]
[347822074,1736134240597,-500.0,0.00021222,3]
[347822075,1736134240606,-500.0,0.00021222,3]
[347822076,1736134240616,-500.0,0.00021222,3]
[347822077,1736134240625,-500.0,0.00021222,3]
[347822078,1736134240635,-601.76899437,0.00021222,3]
[347822079,1736134240648,-500.0,0.00021222,3]
[347822080,1736134240658,-500.0,0.00021222,3]
[347822081,1736134240668,-500.0,0.00021222,3]
[347822082,1736134240678,-500.0,0.00021222,3]
[347822083,1736134240687,-500.0,0.00021222,3]
[347822084,1736134240697,-500.0,0.00021222,3]
[347822085,1736134240706,-522.04082096,0.00021222,3]
[347822086,1736134240715,-500.0,0.00021222,3]
[347822087,1736134240725,-500.0,0.00021222,3]
[347822088,1736134240734,-500.0,0.00021222,3]
[347822089,1736134240743,-500.0,0.00021222,3]
[347822090,1736134240753,-580.73290165,0.00021222,3]
[347822091,1736134240763,-500.0,0.00021222,3]
[347822092,1736134240771,-500.0,0.00021222,3]
[347822093,1736134240781,-201.58524477,0.00021222,3]
[347822094,1736134240790,-427.90937321,0.00021222,3]
[347822095,1736134240800,-511.99562265,0.00021222,3]
[347822096,1736134240809,-500.0,0.00021222,3]
[347822097,1736134240818,-500.0,0.00021222,3]
[347822098,1736134240827,-500.0,0.00021222,3]
[347822099,1736134240837,-500.0,0.00021222,3]
[347822100,1736134240846,-209.6441788,0.00021222,3]
[347822101,1736134240855,-506.32869471,0.00021222,3]
[347822102,1736134240864,-500.0,0.00021222,3]
[347822103,1736134240873,-500.0,0.00021222,3]
[347822104,1736134240882,-500.0,0.00021222,3]
[347822105,1736134240892,-500.0,0.00021222,3]
[347822106,1736134240902,-500.0,0.00021222,3]
[347822107,1736134240911,-500.0,0.00021222,3]
[347822108,1736134240920,-500.0,0.00021222,3]
[347822109,1736134240930,-500.0,0.00021222,3]
[347822110,1736134240939,-500.0,0.00021222,3]
[347822111,1736134240948,-500.0,0.00021222,3]
[347822112,1736134240958,-500.0,0.00021222,3]
[347822113,1736134240967,-500.0,0.00021222,3]
[347822114,1736134240976,-500.0,0.00021222,3]
[347822115,1736134240985,-605.47647324,0.00021222,3]
[347822116,1736134240994,-500.0,0.00021222,3]
[347822117,1736134241004,-500.0,0.00021222,3]
[347822118,1736134241013,-500.0,0.00021222,3]
[347822119,1736134241022,-500.0,0.00021222,3]
[347822120,1736134241031,-518.23,0.00021222,3]
[347822121,1736134241040,-500.0,0.00021222,3]
[347822122,1736134241049,-500.0,0.00021222,3]
[347822123,1736134241059,-500.0,0.00021222,3]
[347822124,1736134241070,-500.0,0.00021222,3]
[347822125,1736134241079,-500.0,0.00021222,3]
[347822126,1736134241088,-500.0,0.00021222,3]
[347822127,1736134241097,-500.0,0.00021222,3]
[347822128,1736134241105,-500.0,0.00021222,3]
[347822129,1736134241115,-500.0,0.00021222,3]
[347822130,1736134241124,-500.0,0.00021222,3]
[347822131,1736134241133,-500.0,0.00021222,3]
[347822132,1736134241142,-500.0,0.00021222,3]
[347822133,1736134241151,-16209.91,0.00021222,3]
[347822134,1736134241160,-500.0,0.00021222,3]
[347822135,1736134241169,-500.0,0.00021222,3]
[347822136,1736134241178,-500.0,0.00021222,3]
[347822137,1736134241187,-500.0,0.00021222,3]
[347822138,1736134241196,-500.0,0.00021222,3]
[347822139,1736134241205,-500.0,0.00021222,3]
[347822140,1736134241214,-500.0,0.00021222,3]
[347822141,1736134241223,-500.0,0.00021222,3]
[347822142,1736134241232,-500.0,0.00021222,3]
[347822143,1736134241241,-500.0,0.00021222,3]
[347822144,1736134241251,-500.0,0.00021223,3]
[347822145,1736134241260,-318.69309218,0.00021223,3]
[347822146,1736134241269,-519.60769988,0.00021223,3]
[347822147,1736134241278,-527.54087143,0.00021223,3]
[347822148,1736134241287,-500.0,0.00021223,3]
[347822149,1736134241296,-500.0,0.00021223,3]
[347822150,1736134241306,-500.0,0.00021223,3]
[347822151,1736134241315,-500.0,0.00021223,3]
[347822152,1736134241324,-500.0,0.00021223,3]
[347822153,1736134241333,-500.0,0.00021223,3]
[347822154,1736134241342,-500.0,0.00021223,3]
[347822155,1736134241351,-500.0,0.00021223,3]
[347822156,1736134241361,-500.0,0.00021223,3]
[347822157,1736134241370,-470.85071243,0.00021223,3]
[347822158,1736134241379,-516.48851546,0.00021223,3]
[347822159,1736134241388,-512.50873532,0.00021223,3]
[347822160,1736134241397,-500.0,0.00021223,3]
[347822161,1736134241406,-500.0,0.00021223,3]
[347822162,1736134241416,-513.36739843,0.00021223,3]
[347822163,1736134241425,-513.77590889,0.00021223,3]
[347822164,1736134241436,-514.63765972,0.00021223,3]
[347822165,1736134241445,-500.0,0.00021223,3]
[347822166,1736134241455,-500.0,0.00021223,3]
[347822167,1736134241463,-500.0,0.00021223,3]
[347822168,1736134241473,-500.0,0.00021223,3]
[347822169,1736134241482,-500.0,0.00021223,3]
[347822170,1736134241492,-503.34724987,0.00021223,3]